Cogmind - Beta 15 @@@ ROGUE MODE // 2025.08.26 @ 21:40:26 Player: cottonman132 Result: Destroyed by S-10 Pest with Light Assault Rifle Performance ------------- Evolutions (1) 500 Regions Visited (2) 400 Robots Destroyed (15) 75 Value Destroyed (335) 335 Prototype IDs (0) 0 Alien Tech Used (0) 0 Bonus (0) 0 TOTAL SCORE: 1310 Bonus ------- None Cogmind --------- Core Integrity 0/400 Matter 300/300 Energy 100/100 System Corruption 0% Temperature Cool (0) Movement Core (50) Location -9/Materials Parts ------- > --- POWER (3) -------- (None) > --- PROPULSION (2) --- (None) > --- UTILITY (2) ------ (None) > --- WEAPON (2) ------- (None) > --- INVENTORY (5) ---- Ion Engine Utility Shielding EM Pulse Gun Beam Cannon Autogun Peak State ------------ > --- POWER ------------ Ion Engine Light Ion Engine Improved Ion Engine > --- PROPULSION ------- Aluminum Leg Aluminum Leg > --- UTILITY ---------- Heat Sink Weight Redist. System > --- WEAPON ----------- Heavy EM Pulse Gun Heavy Assault Rifle > --- INVENTORY -------- Utility Shielding EM Pulse Gun Beam Cannon Autogun [Rating: 13] Favorites ----------- Power Light Ion Engine Engine Light Ion Engine Propulsion Aluminum Leg Leg Aluminum Leg Utility Weight Redist. System Device Weight Redist. System Weapon EM Pulse Gun Energy Gun EM Pulse Gun Energy Cannon Beam Cannon Ballistic Gun Heavy Assault Rifle Build | -11 -10 -9 ------- Run | Yrd Mat Mat Slots Evolved 2 | . . 2 Power 2 | . . 2 Propulsion . | . . . Utility . | . . . Weapon . | . . . Parts Attached 16 | 6 3 7 Power 4 | 1 . 3 Engine 4 | 1 . 3 Core . | . . . Reactor . | . . . Propulsion 3 | 2 . 1 Treads . | . . . Leg 3 | 2 . 1 Wheel . | . . . Hover . | . . . Flight . | . . . Utility 4 | 1 2 1 Device 4 | 1 2 1 Storage . | . . . Processor . | . . . Hackware . | . . . Protection . | . . . Artifact . | . . . Weapon 5 | 2 1 2 Energy Gun 3 | 2 . 1 Energy Cannon 1 | . 1 . Ballistic Gun 1 | . . 1 Ballistic Cannon . | . . . Launcher . | . . . Special Weapon . | . . . Impact Weapon . | . . . Slashing Weapon . | . . . Piercing Weapon . | . . . Special Melee Weapon . | . . . Unidentified Prototypes . | . . . Parts Lost 10 | . . 10 Power 3 | . . 3 Propulsion 2 | . . 2 Utility 3 | . . 3 Weapon 2 | . . 2 Highest Loss Streak 9 | . . 9 To Critical Strikes . | . . . Average Backups 1 | . . 3 Power . | . . . Propulsion . | . . . Utility . | . . 1 Weapon 1 | . . 1 Tool/Special . | . . . Unused Backups 2 | . . 2 Power . | . . . Propulsion . | . . . Utility 1 | . . 1 Weapon 1 | . . 1 Tool/Special . | . . . Average Slot Usage (%) 85 | . 95 81 Engine 18 | . 14 20 Leg 23 | . 28 21 Device 19 | . 23 18 Energy Gun 13 | . 20 10 Energy Cannon 7 | . 7 7 Ballistic Gun 2 | . . 3 Peak Build Rating 13 | 6 10 13 Average Rating 8 | 3 8 9 On Entrance 5 | . 6 10 Naked Turns 7 | . . 7 Heaviest Build 22 | 7 9 22 Greatest Support 26 | 20 26 26 Greatest Overweight (x) . | . . . Average Overweight (x) . | . . . Largest Inventory Capacity 5 | 5 5 5 Average Capacity 5 | 5 5 5 Most Carried 5 | 2 1 5 Average Carried 1 | . . 3 Final Capacity 5 | 5 5 5 Final Carried 5 | . 1 5 Class Distribution -------------------- 63% | Mutant 36% | Scavenger-Mutant Dominant Class ---------------- Mutant | -10/Materials Scavenger-Mutant | -9/Materials Resources | -11 -10 -9 ----------- Run | Yrd Mat Mat Matter Collected 396 | 260 40 96 Remotely . | . . . Salvage Created 528 | 43 124 361 Parts 42 | 3 8 31 Haulers Intercepted 1 | . 1 . Recyclers Shooed . | . . . Parts Field Recycled . | . . . Retrieved Matter . | . . . Parts Self-Destructed . | . . . Prevented . | . . . Kills | -11 -10 -9 ------- Run | Yrd Mat Mat Combat Hostiles Destroyed 11 | 1 1 9 Guns 8 | 1 1 6 Cannons 3 | . . 3 Classes Destroyed 6 | 1 2 3 Worker 1 | . . 1 Hauler 1 | . 1 . Watcher 2 | . 1 1 Swarmer 4 | . . 4 Grunt 5 | 1 1 3 Sentry 2 | . . 2 Best Kill Streak 5 | 1 2 5 Combat Bots Only 4 | 1 1 4 Max Kills in Single Turn 1 | 1 1 1 Gunslinging . | . . . Exploded . | . . . Melee . | . . . Uniques/NPCs Destroyed . | . . . Combat | -11 -10 -9 -------- Run | Yrd Mat Mat Hostile Shots Fired 147 | 1 2 144 Missed 46 | 1 1 44 Hits 101 | . 1 100 Projectile 101 | . 1 100 AOE 2 | . . 2 Critical Strikes 6 | . . 6 Damage Taken 1246 | . 10 1236 Core 404 | . . 404 Absorbed by Shields . | . . . Core Remaining (%) 100 | 100 100 . Volleys Fired 49 | 2 4 43 Largest 2 | 2 2 2 Hottest 105 | 80 100 105 Shots Fired 87 | 4 8 75 Gun 67 | 4 7 56 Cannon 20 | . 1 19 Launcher . | . . . Special . | . . . Kinetic 24 | . . 24 Thermal 25 | 2 4 19 Explosive . | . . . Electromagnetic 38 | 2 4 32 Robot Hit Streak 15 | 1 2 15 Robot Miss Streak 3 | 1 1 3 Penetration Max . | . . . Secondary Targets . | . . . Shots Hit Robots 51 | 2 4 45 Core Hits 22 | 1 4 17 Critical Kills . | . . . Critical Parts Destroyed . | . . . Critical Strikes . | . . . Melee Attacks . | . . . Impact . | . . . Slashing . | . . . Piercing . | . . . Sneak Attacks . | . . . Combat Hostiles . | . . . Follow-up Attacks . | . . . Damage Inflicted 726 | 27 59 640 Guns 518 | 27 42 449 Cannons 195 | . 17 178 Explosions . | . . . Melee . | . . . Ramming 13 | . . 13 Kinetic 236 | . . 236 Thermal 219 | 12 29 178 Explosive . | . . . Electromagnetic 258 | 15 30 213 Impact . | . . . Slashing . | . . . Piercing . | . . . Highest Corruption . | . . . Average Corruption . | . . . Corruption Purged . | . . . Corruption Blocked . | . . . Overload Shots . | . . . Overflow Damage . | . . . Projectiles . | . . . Explosions . | . . . Melee . | . . . Knockbacks . | . . . Impact . | . . . Kinetic . | . . . Secondary . | . . . Self-Inflicted Damage . | . . . Shots . | . . . Rammed . | . . . Targets Rammed 3 | . . 3 Kicked 3 | . . 3 Crushed . | . . . Highest Temperature 110 | 18 2 110 Average Temperature 35 | 12 2 37 Received Heat Transfer 372 | . 6 366 Siege Activations . | . . . Martial Activations . | . . . Shielding Activations . | . . . Robots Disrupted . | . . . Combat Hostiles . | . . . Robots Corrupted . | . . . Combat Hostiles . | . . . Parts Fried 2 | . . 2 Impact Corruptions . | . . . Robots Melted . | . . . Combat Hostiles . | . . . Parts Melted . | . . . Heat Transferred 457 | 25 62 370 Parts Sabotaged . | . . . Parts Stolen . | . . . Parts Stripped . | . . . Power Chain Reactions . | . . . Alert | -11 -10 -9 ------- Run | Yrd Mat Mat Maximum Alert Level . | . . . Low Security (%) 100 | 100 100 100 Level 1 . | . . . Level 2 . | . . . Level 3 . | . . . Level 4 . | . . . Level 5 . | . . . High Security . | . . . Max Security . | . . . Peak Influence 103 | 20 37 103 Initial 6 | . 6 . Average 22 | 4 5 32 Influence Increases 355 | 20 53 282 Destroy 0b10 Robot/C 220 | 20 20 180 Destroy 0b10 Robot/NC 20 | . 10 10 Destroy Leader 66 | . 14 52 Successful Hack 18 | . 9 9 Destroy Structure 1 | . . 1 Lose Combat Pursuer 30 | . . 30 Influence Decreases 355 | 10 63 282 Entered New Map 4 | . 4 . Time Decay 265 | 10 59 196 Lost Part 44 | . . 44 Purge Threat 42 | . . 42 Squads Dispatched 3 | . 1 2 Investigation 2 | . 1 1 Extermination . | . . . Reinforcement 1 | . . 1 Assault . | . . . Garrison . | . . . Intercept . | . . . Searches Triggered . | . . . Construction Impeded . | . . . Haulers Reinforced . | . . . Active Scanning Responses . | . . . Cargo Convoy Interrupts . | . . . Stealth | -11 -10 -9 --------- Run | Yrd Mat Mat Distress Signals 2 | . . 2 Communications Jammed . | . . . Distress Signals . | . . . Times Spotted 26 | 1 2 23 Peak Tracking Total 11 | . 1 11 Tactical Retreats 2 | . . 2 Traps | -11 -10 -9 ------- Run | Yrd Mat Mat Traps Triggered . | . . . Indirectly . | . . . Trap Hack Attempts . | . . . Triggered . | . . . Disarmed . | . . . Reprogrammed . | . . . Reused . | . . . Traps Extracted . | . . . Installed . | . . . Triggered . | . . . Machines | -11 -10 -9 ---------- Run | Yrd Mat Mat Machines Disabled . | . . . Max in Single Turn . | . . . Machines Repaired . | . . . Machines Dismantled . | . . . Machines Sabotaged . | . . . Overloaded Fab Kills . | . . . Hacking | -11 -10 -9 --------- Run | Yrd Mat Mat Machines Accessed 5 | . 2 3 Terminals 5 | . 2 3 Fabricators . | . . . Repair Stations . | . . . Recycling Units . | . . . Scanalyzers . | . . . Garrison Access . | . . . Total Hacks 17 | . 7 10 Successful 11 | . 3 8 Failed 6 | . 4 2 Catastrophic . | . . . Database Lockouts . | . . . Manual . | . . . Terminals 17 | . 7 10 Fabricators . | . . . Repair Stations . | . . . Recycling Units . | . . . Scanalyzers . | . . . Garrison Access . | . . . Terminal Hacks 11 | . 3 8 Record 8 | . 2 6 Unreport Threat 1 | . . 1 Recall Reinforcements 1 | . . 1 Zone Layout 1 | . 1 . Fabricator Hacks . | . . . Repair Station Hacks . | . . . Recycling Unit Hacks . | . . . Scanalyzer . | . . . Garrison Access Hacks . | . . . Unauthorized Hacks . | . . . Terminals . | . . . Fabricators . | . . . Repair Stations . | . . . Recycling Units . | . . . Scanalyzers . | . . . Garrison Access . | . . . Data Cores Recovered 1 | . 1 . Used . | . . . Hacking Detections 3 | . 1 2 Full Trace Events 2 | . 1 1 Feedback Events . | . . . Feedback Blocked . | . . . Robot Schematics Acquired . | . . . Robots Built . | . . . Authchips . | . . . Time . | . . . Total Robot Build Rating . | . . . Part Schematics Acquired . | . . . Parts Built . | . . . Authchips . | . . . Time . | . . . Total Part Build Rating . | . . . Parts Repaired . | . . . Time . | . . . Parts Recycled . | . . . Recycled Matter . | . . . Retrieved Matter . | . . . Retrieved Components . | . . . Parts Scanalyzed . | . . . Part Schematics Acquired . | . . . Parts Damaged . | . . . Bothacking | -11 -10 -9 ------------ Run | Yrd Mat Mat Used RIF Installer . | . . . Robots Hacked . | . . . Non-combat . | . . . Combat . | . . . Robot Hacks Applied . | . . . Relay Couplers Released . | . . . Fabnet Peak Effective % . | . . . Robots Rewired . | . . . Allies Hacked . | . . . Hacks Repelled . | . . . Allies | -11 -10 -9 -------- Run | Yrd Mat Mat Total Allies . | . . . Largest Group . | . . . Highest-Rated Group . | . . . Highest-Rated Ally . | . . . Total Orders . | . . . Ally Attacks . | . . . Total Damage . | . . . Kills . | . . . Allies Corrupted . | . . . Allies Melted . | . . . Intel | -11 -10 -9 ------- Run | Yrd Mat Mat Active Infowar (turns) . | . . . Robot Analysis Total . | . . . Derelict Logs Recovered . | . . . Drone Launches . | . . . Drone Recoveries . | . . . Exploration | -11 -10 -9 ------------- Run | Yrd Mat Mat Turns Passed 885 | 84 260 541 Spaces Moved 578 | 62 196 320 Core 16 | 16 . . Treads . | . . . Legs 562 | 46 196 320 Wheels . | . . . Hover . | . . . Flight . | . . . Fastest Speed 50 | 50 120 120 Average Speed 118 | 101 120 120 Slowest Speed 120 | 120 120 120 Overloaded Moves . | . . . Propulsion Burnouts . | . . . Robots Hopped . | . . . Potential Cave-ins . | . . . Cave-ins Triggered . | . . . Exploration Rate (%) 21 | 6 36 21 Regions Visited 2 Branch Regions . Pre-discovered Areas . | . . . Known Exits Taken . | . . . Unknown Exits Taken 2 | 1 1 . Scrap Searched . | . . . Spaces Dug . | . . . Terrain Destroyed . | . . . Melee . | . . . Projectile . | . . . AOE . | . . . Terrain Rammed . | . . . Walls Destroyed . | . . . Machines Disabled . | . . . Actions | -11 -10 -9 --------- Run | Yrd Mat Mat Total 691 | 79 212 400 Wait 23 | 4 3 16 Move 576 | 61 195 320 Hop . | . . . Pick Up 19 | 6 4 9 Fast Attach . | . . . Attach 10 | 6 1 3 Detach . | . . . Swap 7 | . 3 4 Drop 4 | . 2 2 Fire 49 | 2 4 43 Melee . | . . . Ram . | . . . Kick 3 | . . 3 Crush . | . . . Escape Stasis . | . . . Rewire . | . . . Trap . | . . . Miscellaneous . | . . . Route ------- -11/Scrapyard -10/Materials -9/Materials History --------- Turn | Location | Event 2 | -11/Scrapyard | Met Revision 17 56 | -11/Scrapyard | Discovered new exit (range 8) 85 | -11/Scrapyard | Entered Materials 86 | -10/Materials | Met a group of wandering Federalists 276 | -10/Materials | Discovered new exit (range 16) 313 | -10/Materials | Build established: Mutant 345 | -10/Materials | Entered another Materials area 345 | -9/Materials | Evolved 2 slots: Power x2 858 | -9/Materials | Build established: Scavenger-Mutant 880 | -9/Materials | Core integrity fell below 50% 884 | -9/Materials | Core integrity fell below 20% 886 | -9/Materials | Destroyed by S-10 Pest with Light Assault Rifle Last Messages --------------- W-16 Scout sends out distress signal. R-06 Scavenger collects Sml. Matter Pod. Hvy. EM Pulse Gun destroyed. Y-45 Defender IFF system glitched. C-30 ARC bursts open, deploying its payload. S-10 Pest unfolds itself. Lgt. Ion Engine destroyed. K-01 Serf collects debris. S-10 Pest destroyed. Imp. Ion Engine destroyed. K-01 Serf collects debris. Ion Engine destroyed. Aluminum Leg destroyed. K-01 Serf collects debris. M-13 Machinist repairs Y-45 Defender. Hvy. Assault Rifle destroyed. Heat Sink destroyed. Critical hit (Burn: +37). Weight Redist. System destroyed. M-13 Machinist repairs S-10 Pest Flight Unit. Map ----- +----------------------------------------------------+ | ?????????????????????????????????????????????????? | | ?????????????????????????????????????????????????? | | ?????????????????????????????????????????????????? | | ?????????????????????????????????????????????????? | | ?????????????????????????? ??????????????????????? | | ?????????????????????????? ??????????????????????? | | ?????????????????????????? ??????????????????????? | | ?????????????????????????? ??????????????????????? | | ?????????????????????????? ??????????????????????? | | ?????????????????????????? ??????????????????????? | | ?????????????????????????? ??????????????????????? | | ?????????????????????????# #?????????????????????? | | ?????????????????????????# #?????????????????????? | | ?????????????????????????# #?????????????????????? | | ???????????????###???????# #?????????????????????? | | ???????????????? ??????# #?????????????????????? | | ????????????????# ??????# #?????????????????????? | | ????????????????# !!?????# #?????????????????????? | | ????????????????# !!?????#g#?????????????????????? | | ????????????????# ????#g#?????????????????????? | | ????????????????# ????#g#?????????????????????? | | ????????????????# ?### #?????????????????????? | | ????????????????# """ ?# Y#?????????????????????? | | ????????????????# """ # #?????????????????????? | | ????????????????# """ #k ###########???????????? | | ????????????????# """ Y @ ## #???????????? | | ????????????????# """ # [r## """#???????????? | | ????????????????# #m%=## """#???????????? | | ????????????????########s* ## """#???????????? | | ?????????????##########%s #% #???????????? | | ??????????? s #[= """#???????????? | | ??????????? +% """#???????????? | | ??????????? #! """#???????????? | | ???????????############ # #???????????? | | ??????????????????????## ###########???????????? | | ???????????????????????# # #???????????? | | ???????????????????????# # #???????????? | | ???????????????????????# + #???????????? | | ???????????????????????# # #???????????? | | ???????????????????????# #######+###???????????? | | ??????????????????###### o##??### ###???????????? | | ??????????????????#// !%#### ###### #????? | | ??????????????????#// # " ?? | | ??????????????????#// T T + ? | | ??????????????????#// # ?? | | ??????????????????#!! #### ########! ??? | | ??????????????????#!! ###+####### ## ###### ???? | | ??????????????????#####* ^ # # ##???? | | ??????????????????????#![ # ### ###??? | | ?????????###########??#%""" + # # #??? | +----------------------------------------------------+ Best States ------------- Heat Dissipation 42 Energy Generation 22 Energy Capacity 440 Matter Stores 300 Matter Capacity 300 Sight Range 16 Terrain Scan Density 10 Additional Mass Support 6 Evasion (%) 55 Item Schematics ----------------- None Robot Schematics ------------------ None Fabricated ------------ Nothing Repaired ---------- Nothing Alien Tech Used ----------------- None Achievements -------------- Crack Shot Everything Is Under Control Challenges ------------ None Game ------ Seed ReactivePartitionTube Manual? 0 Play Time 00:18:42 Cumulative 1.2 hours Start 2025.08.26 @ 21:19:48 End 2025.08.26 @ 21:40:26 Sessions 1 Manual Loads 0 Difficulty Rogue Special Mode None Game No. 3 Rogue 3 Adventurer 0 Explorer 0 Win Type - Total 0 Types 0/0/0/0/0/0/0/0/0/0 Lore% 0 Gallery% 2 Achievement% 4 Wizard Run 0 Options --------- Layout 1 ASCII 0 Keyboard 0 Movement Mouse Keybinds 0 Fullscreen 1 Font 24/Smallcaps Map View 50x35 Zoom Use 0% Tactical HUD 0 Map Filters NONE Filters NONE Steam 1 RUN: 16730be5-14f9-4378-bd57-4aca3347cc84